[Event "Coimbra Queima Fitas Open 2024"]
[Site "Coimbra"]
[Date "2024.04.27"]
[Round "4.2"]
[White "Veiga, Jose Francisco R P N"]
[Black "Simoes, Miguel Caldeira"]
[Result "1/2-1/2"]
[ECO "C50"]
[WhiteElo "2378"]
[BlackElo "2084"]
[Annotator "TA"]
[PlyCount "125"]
[EventDate "2024.04.23"]
[EventType "swiss"]
[EventCountry "POR"]
[SourceTitle "playchess.com"]
[Source "ChessBase"]
[SourceQuality "1"]
[TimeControl "5400+30"]

{[%evp 10,125,16,11,22,20,14,15,21,11,11,9,14,3,5,14,10,7,12,2,14,14,14,12,23,16,14,16,12,18,18,16,34,0,27,0,0,0,0,0,0,0,0,0,0,0,0,0,0,0,20,23,21,31,23,0,0,-21,0,0,0,-6,-10,-10,-11,-42,-45,-96,-14,-21,-20,-50,-20,-24,0,0,8,8,8,8,8,8,8,8,8,8,8,391,236,331,390,389,633,647,636,629,609,592,468,8,8,8,8,8,8,8,8,8,8,8,8,0,0,0,8,8,8,8]} 1. e4 {[%emt 0:06:08]} e5 {[%emt 0:00:51]} 2. Nf3 {[%emt 0:00:06]} Nc6 {[%emt 0:00:10]} 3. Bc4 {[%emt 0:00:04]} Bc5 {[%emt 0:01:29]} 4. O-O {[%emt 0:00:09]} Nf6 {[%emt 0:01:14]} 5. d3 {[%emt 0:00:07]} h6 {[%emt 0:03:05]} 6. c3 {[%emt 0:01:00]} Bb6 {[%emt 0:02:54]} 7. a4 {[%emt 0:03:31]} d6 {[%emt 0:07:31]} 8. Nbd2 {[%emt 0:01:15]} O-O {[%emt 0:02:49]} 9. h3 {[%emt 0:00:43]} a5 {[%emt 0:05:16]} 10. Re1 {[%emt 0:01:08]} Be6 {[%emt 0:02:05]} 11. Bxe6 {[%emt 0:05:44]} fxe6 {[%emt 0:00:16]} 12. Nc4 {[%emt 0:00:06]} Bc5 {[%emt 0:01:14]} 13. Be3 {[%emt 0:01:15]} Bxe3 {[%emt 0:04:14]} 14. Rxe3 {[%emt 0:00:07]} Qe8 {[%emt 0:10:49]} 15. Qb3 {[%emt 0:05:05]} b6 {[%emt 0:01:05]} 16. Qb5 {[%emt 0:00:31]} Nh5 {[%emt 0:03:49]} 17. Rf1 {[%emt 0:36:10]} Nf4 {[%emt 0:17:40]} 18. Kh2 {[%emt 0:00:15]} g5 {[%emt 0:05:50]} 19. g3 {[%emt 0:05:56]} Ng6 {[%emt 0:06:17]} 20. Kg2 {[%emt 0:02:42]} Rd8 {[%emt 0:01:14]} 21. d4 {[%emt 0:02:40]} exd4 {[%emt 0:03:03]} 22. cxd4 {[%emt 0:00:09]} Nb4 {[%emt 0:01:20][%cal Bc6b4,Bb4a6,Ba6c5][%mdl 32]} 23. Qxe8 {[%emt 0:01:39]} Rdxe8 {[%emt 0:00:28]} 24. Rc1 {[%emt 0:00:56]} Rf7 {[%emt 0:00:51]} 25. Na3 {[%emt 0:00:36]} Ref8 {[%emt 0:00:49]} 26. Nb5 {[%emt 0:01:18]} Na6 {[%emt 0:00:51]} 27. Rc2 {[%emt 0:03:04]} e5 {[%emt 0:00:47]} 28. d5 {[%emt 0:06:06]} Nc5 {[%emt 0:01:48]} 29. Ne1 {[%emt 0:01:13]} h5 {[%emt 0:02:50]} 30. Nf3 {[%emt 0:02:29]} g4 {[%emt 0:00:13]} 31. hxg4 {[%emt 0:00:30]} hxg4 {[%emt 0:00:41]} 32. Nh2 {[%emt 0:00:23]} Rg7 $1 {[%emt 0:00:43]} 33. Rc4 {[%emt 0:03:24][%cal Bc2c4,Bc4b4,Bb4b1][%mdl 32]} Nh8 {[%emt 0:01:41]} (33... Kh7 $5) 34. Re2 {[%emt 0:01:06]} Kh7 {[%emt 0:03:05]} 35. b4 {[%emt 0:02:04]} axb4 {[%emt 0:00:14]} (35... Nxa4 $2 {loses.} 36. Ra2 (36. Nxc7 Rc8 $18) (36. Rxc7 Rxc7 37. Nxc7 axb4 $11) 36... Nc5 37. bxc5 dxc5 38. Rc1 $18) 36. Rxb4 {[%emt 0:00:08]} Kh6 {[%emt 0:00:28]} 37. Ra2 {[%emt 0:02:13]} Kh5 {[%emt 0:00:14]} 38. Nc3 {[%emt 0:02:21] [#]} (38. Rc4 $15) 38... Rgf7 {[%emt 0:01:21]} (38... Nf7 $1 $17 {...Ng5 is the strong threat.} 39. Nd1 (39. a5 bxa5 40. Rxa5 Ng5 $17) 39... Ng5) 39. Rb1 {[%emt 0:01:12]} (39. Rc4 {simplifies} Rd7 40. a5 bxa5 41. Rxa5 Nf7 42. Nd1) 39... Ng6 {[%emt 0:00:29]} 40. Re2 {[%emt 0:02:07]} Kg5 {[%emt 0:01:13] Black wants to play ...Nd3.} 41. Rf1 {[%emt 0:01:26]} Nb3 {[%emt 0:03:35]} 42. f3 {[%emt 0:00:36]} Nd4 {[%emt 0:00:58]} 43. Ref2 {[%emt 0:00:27]} gxf3+ {[%emt 0:01:33]} 44. Nxf3+ {[%emt 0:00:02]} Nxf3 {[%emt 0:01:44]} 45. Rxf3 {[%emt 0:00:01]} Rxf3 {[%emt 0:00:39]} 46. Rxf3 {[%emt 0:00:01]} Rxf3 {[%emt 0:01:19]} 47. Kxf3 $11 {[%emt 0:00:02][%mdl 4096] [#] Endgame. aiming for Nb5. KN-KN} Ne7 $1 {[%emt 0:00:06]} 48. Nb5 {[%emt 0:00:09]} c6 {[%emt 0:00:05]} 49. dxc6 {[%emt 0:00:32]} ({Weaker is} 49. Nxd6 cxd5 50. g4 Kf6 $14) 49... Nxc6 {[%emt 0:00:01]} 50. Nxd6 {[%emt 0:00:08]} Kf6 $2 {[%emt 0:00:27]} (50... Nb8 51. Kg2 Nd7) 51. Ke3 $18 {[%emt 0:02:03]} Nd4 {[%emt 0:00:08]} 52. Nc8 {[%emt 0:01:56]} b5 {[%emt 0:01:06]} 53. a5 {[%emt 0:00:01] Strongly threatening a6.} b4 {[%emt 0:00:14]} 54. Kd3 $2 {[%emt 0:00:16]} (54. Nd6 $18) 54... Nb3 $11 {[%emt 0:00:18] The position is equal.} 55. Kc4 {[%emt 0:01:29][%csl LRb3,LRb4]} (55. a6 $5 Nc5+ $8 56. Kc4 Nxa6 57. Nb6 $11) 55... Nxa5+ {[%emt 0:00:04]} 56. Kxb4 {[%emt 0:00:11]} Nc6+ {[%emt 0:00:07]} 57. Kc5 {[%emt 0:00:12]} Nd4 {[%emt 0:00:11]} 58. Nb6 {[%emt 0:01:29]} Ne2 {[%emt 0:00:35]} 59. g4 {[%emt 0:00:13]} Kg5 {[%emt 0:00:17]} 60. Nd7 {[%emt 0:00:59]} Kxg4 {[%emt 0:00:11]} 61. Kd5 {[%emt 0:00:29]} Nc3+ {[%emt 0:00:09]} 62. Kxe5 {[%emt 0:00:05]} Nxe4 {[%emt 0:00:05]} 63. Kxe4 {[%emt 0:00:04] White really could win this.   Weighted Error Value: White=0.18 (very precise) /Black=0.11 (very precise) .  Mistake:       	White=1     	Black=2      Inaccurate:     	White=4     	Black=2      OK:         	White=18    	Black=25     Best:        	White=2     	Black=1      Strong:       	---       	Black=2} 1/2-1/2

[Event "Coimbra Queima Fitas Open 2024"]
[Site "Coimbra"]
[Date "2024.04.27"]
[Round "4.3"]
[White "Martins, Bruno Andre Leite"]
[Black "Pintor, Simao Maciel Abranch"]
[Result "1/2-1/2"]
[ECO "B32"]
[WhiteElo "2360"]
[BlackElo "2039"]
[Annotator "TA"]
[PlyCount "116"]
[EventDate "2024.04.23"]
[EventType "swiss"]
[EventCountry "POR"]
[SourceTitle "playchess.com"]
[Source "ChessBase"]
[SourceQuality "1"]
[TimeControl "5400+30"]

{[%evp 16,116,20,0,9,0,0,0,0,0,0,0,32,33,29,27,32,37,52,35,43,45,31,63,68,26,13,-35,11,0,0,0,29,0,0,0,39,8,5,0,29,27,62,39,43,46,40,24,21,17,17,0,0,-18,-10,-23,-18,-32,-35,-39,-30,-37,0,-246,-246,-956,-905,-685,-46,-55,-56,-55,-12,-12,-12,-12,-9,-9,-9,-20,-12,-12,-16,-16,-16,-16,-16,-61,-61,-60,-59,-59,-56,-59,-56,-57,-55,-55,-9,-9,-9,-9,-9]} 1. e4 {[%emt 0:04:23]} c5 {[%emt 0:00:04]} 2. Nf3 {[%emt 0:00:21]} Nc6 {[%emt 0:00:04]} 3. d4 {[%emt 0:00:20]} cxd4 {[%emt 0:00:05]} 4. Nxd4 {[%emt 0:00:03]} e5 {[%emt 0:00:06]} 5. Nb5 {[%emt 0:00:28]} d6 {[%emt 0:00:06]} 6. a4 {[%emt 0:05:22]} Be7 {[%emt 0:04:53]} 7. N1c3 {[%emt 0:02:28]} a6 {[%emt 0:00:09]} 8. Na3 {[%emt 0:00:06]} Nf6 {[%emt 0:01:28]} 9. Bg5 {[%emt 0:06:15]} Bg4 {[%emt 0:09:19]} 10. Qd2 {[%emt 0:07:16]} Nd4 {[%emt 0:06:22]} 11. Bc4 {[%emt 0:06:13]} Bf3 {[%emt 0:05:01]} 12. Bxf6 {[%emt 0:05:25]} Bxf6 {[%emt 0:05:29]} 13. Kf1 {[%emt 0:09:07]} (13. O-O Bg5 14. Qd3 Bf4 $15) 13... Qd7 {[%emt 0:06:44][%cal Of3g2]} 14. h3 {[%emt 0:15:06]} Bh5 {[%emt 0:03:49]} 15. Nd5 {[%emt 0:02:02]} Bd8 {[%emt 0:00:22][%cal Oa8c8] Repels Nb6} 16. c3 {[%emt 0:06:40]} Ne6 {[%emt 0:00:53][%cal Oe8g8]} 17. Bb3 {[%emt 0:00:28]} Nc5 {[%emt 0:01:49][%csl LRa4,LRb3,LRe4]} 18. Bc2 {[%emt 0:00:15]} b5 {[%emt 0:06:20] Prevents Nc4.} 19. axb5 {[%emt 0:10:12]} axb5 {[%emt 0:00:09]} 20. Re1 {[%emt 0:00:30]} O-O {[%emt 0:01:34]} 21. Bd3 {[%emt 0:01:57]} (21. Rh2 $11) 21... Rb8 {[%emt 0:03:26]} (21... Bg6 $15 {deserves consideration.}) 22. Nc2 {[%emt 0:00:49][%cal Ba3c2,Bc2e3,Be3f5][%mdl 32]} Bg6 {[%emt 0:01:20] ...f5 would now be deadly.} 23. g4 {[%emt 0:04:21]} h5 {[%emt 0:01:42]} 24. f3 {[%emt 0:00:58]} Bh4 {[%emt 0:01:35]} 25. Rd1 {[%emt 0:01:29]} Qa7 {[%emt 0:04:40] [#] ...Nxd3 is the strong threat.} 26. Nce3 {[%emt 0:03:40]} Ne6 {[%emt 0:03:39]} 27. Nf5 {[%emt 0:02:13] Excellent horsemanship.} Bg5 {[%emt 0:01:12]} 28. Qf2 {[%emt 0:00:11] Some like it hot} Qxf2+ {[%emt 0:03:54]} 29. Kxf2 {[%emt 0:00:02]} Bxf5 {[%emt 0:00:08]} 30. exf5 {[%emt 0:01:29]} Nf4 {[%emt 0:06:19]} 31. h4 {[%emt 0:03:56]} Bxh4+ {[%emt 0:00:35]} 32. Rxh4 {[%emt 0:00:03]} Nxd5 {[%emt 0:00:06]} 33. gxh5 {[%emt 0:02:15]} Nf4 {[%emt 0:03:15]} 34. Bb1 {[%emt 0:00:08]} d5 {[%emt 0:02:59] And now ...b4 would win.} 35. Rg1 {[%emt 0:00:40]} Rb6 {[%emt 0:01:15]} 36. h6 {[%emt 0:00:13]} g6 {[%emt 0:00:25]} 37. fxg6 {[%emt 0:00:44]} fxg6 {[%emt 0:00:35]} 38. Rg5 {[%emt 0:00:31]} b4 {[%emt 0:03:03]} 39. cxb4 {[%emt 0:00:25]} (39. c4 $11 {and White is okay.}) 39... Rxb4 $19 {[%emt 0:02:46]} 40. h7+ $2 {[%emt 0:00:34]} (40. b3 Rxb3 (40... e4 41. Rgg4 $11) 41. Bxg6 Rb2+ 42. Kg1) 40... Kh8 {[%emt 0:00:35]} 41. b3 {[%emt 0:00:44] [#]} Nd3+ $2 {[%emt 0:03:38]} 42. Bxd3 {[%emt 0:00:25]} Rxh4 {[%emt 0:00:04]} 43. Rxe5 $15 {[%emt 0:00:14][%mdl 4096] Endgame. KRR-KRB} Rhf4 {[%emt 0:01:53]} 44. Bxg6 {[%emt 0:00:26]} Rxf3+ {[%emt 0:00:04]} 45. Ke2 {[%emt 0:00:18]} d4 {[%emt 0:01:42][%cal Of3g3]} 46. b4 {[%emt 0:00:51]} Rg3 {[%emt 0:00:51]} 47. Re6 {[%emt 0:00:41]} Rb3 {[%emt 0:01:02][%cal Of8d8]} 48. Rd6 {[%emt 0:00:31]} Kg7 {[%emt 0:01:36] White must now prevent ...Re3+.} 49. Bc2 {[%emt 0:00:38]} Rxb4 {[%emt 0:03:05]} 50. Rd7+ {[%emt 0:00:06]} Kh8 {[%emt 0:02:03]} 51. Kd3 {[%emt 0:00:23]} Rc8 {[%emt 0:00:24]} 52. Bd1 $1 {[%emt 0:00:37]} Rc3+ {[%emt 0:00:28]} 53. Ke4 {[%emt 0:00:10]} Re3+ {[%emt 0:00:13]} 54. Kf5 {[%emt 0:01:14]} d3 {[%emt 0:00:30]} 55. Bh5 {[%emt 0:00:23]} Rb8 {[%emt 0:01:15]} 56. Kf4 {[%emt 0:00:25]} Rh3 {[%emt 0:00:14]} (56... Re6 $15 57. Rxd3 Rf6+ (57... Kxh7 58. Kg3 $11) 58. Kg3 Rf5 (58... Kxh7 59. Bf3 $11)) 57. Bg6 $11 {[%emt 0:00:32]} Rf8+ {[%emt 0:00:52]} 58. Kg4 {[%emt 0:00:14]} Re3 {[%emt 0:00:35] Weighted Error Value: White=0.24 (precise) /Black=0.20 (precise) .  Loses game:     	White=1     	---        Mistake:       	White=2     	Black=2      Inaccurate:     	White=4     	Black=6      OK:         	White=19    	Black=19     Best:        	White=4     	Black=1      Strong:       	White=1     	---} 1/2-1/2

[Event "Coimbra Queima Fitas Open 2024"]
[Site "Coimbra"]
[Date "2024.04.27"]
[Round "4.4"]
[White "Pacetti Terra, Nicolas Marcelo"]
[Black "Martin Duque, Jesus"]
[Result "0-1"]
[ECO "E12"]
[WhiteElo "2019"]
[BlackElo "2336"]
[Annotator "TA"]
[PlyCount "68"]
[EventDate "2024.04.23"]
[EventType "swiss"]
[EventCountry "POR"]
[SourceTitle "playchess.com"]
[Source "ChessBase"]
[SourceQuality "1"]
[TimeControl "5400+30"]

{[%evp 15,68,17,22,-81,-85,-110,-110,-106,-103,-104,-91,-117,-107,-125,-93,-183,-193,-194,-179,-278,-271,-272,-259,-464,-472,-619,-620,-620,-611,-599,-353,-839,-883,-870,-775,-904,-884,-1437,-1262,-1403,-1522,-1596,-1358,-5110,-5093,-29978,-29979,-29979,-29980,-29984,-29985,-29985,-29986,-29987,-29988]} 1. d4 {[%emt 0:00:07]} Nf6 {[%emt 0:05:21]} 2. c4 {[%emt 0:00:03]} e6 {[%emt 0:00:03]} 3. Nf3 {[%emt 0:00:06]} b6 {[%emt 0:00:01]} 4. a3 {[%emt 0:00:41]} Ba6 {[%emt 0:00:03]} 5. Qc2 {[%emt 0:00:48]} Bb7 {[%emt 0:00:03]} 6. Nc3 {[%emt 0:00:31]} c5 {[%emt 0:00:02]} 7. e4 {[%emt 0:08:54]} cxd4 {[%emt 0:01:28]} 8. Nxd4 {[%emt 0:00:07]} Bc5 {[%emt 0:00:03]} 9. Be3 {[%emt 0:02:59]} (9. Nb3 $11) 9... Ng4 $17 {[%emt 0:00:44]} 10. Bd3 {[%emt 0:13:56]} Nxe3 {[%emt 0:01:26]} 11. fxe3 {[%emt 0:00:08] Black is better.} Nc6 {[%emt 0:01:23]} 12. Qf2 {[%emt 0:02:40]} Qf6 {[%emt 0:03:40]} 13. Qxf6 {[%emt 0:12:05]} gxf6 {[%emt 0:00:02]} 14. Ncb5 {[%emt 0:00:08]} Ke7 {[%emt 0:02:14]} 15. Nxc6+ {[%emt 0:05:22]} (15. Kd2 $17) 15... dxc6 $19 {[%emt 0:03:33]} ({But not} 15... Bxc6 16. Nd4 $17) 16. Nd4 {[%emt 0:04:58]} Rad8 {[%emt 0:00:10]} 17. Ke2 {[%emt 0:00:22]} (17. O-O-O {keeps fighting.}) 17... Bxd4 {[%emt 0:00:12]} 18. exd4 {[%emt 0:00:07]} Rxd4 {[%emt 0:00:02]} 19. c5 $2 {[%emt 0:05:29]} (19. Ke3 c5 20. Rhd1) 19... Rhd8 {[%emt 0:00:15]} ({Not} 19... bxc5 20. Rac1 $19) 20. Rhd1 {[%emt 0:01:50] [#]} Rxd3 $1 {[%emt 0:00:37][%mdl 512]} 21. Rxd3 {[%emt 0:00:08][%mdl 4096] Endgame. KRR-KRB} Ba6 {[%emt 0:00:05]} (21... bxc5 22. Rxd8 Kxd8 23. Rc1 $18) 22. Rad1 {[%emt 0:00:06]} bxc5 {[%emt 0:00:48]} 23. Ke3 $2 {[%emt 0:01:42]} (23. a4) 23... Rxd3+ {[%emt 0:00:03]} 24. Rxd3 {[%emt 0:00:10]} Bxd3 {[%emt 0:00:02]} 25. Kxd3 {[%emt 0:00:09] KP-KP} Kd6 {[%emt 0:00:01]} 26. g4 {[%emt 0:13:07]} Ke5 {[%emt 0:00:06]} 27. Ke3 {[%emt 0:00:06]} c4 {[%emt 0:02:53]} 28. a4 {[%emt 0:04:20]} c5 {[%emt 0:00:21] ...f5 would now be deadly.} 29. a5 {[%emt 0:00:35]} a6 {[%emt 0:00:07]} 30. h4 {[%emt 0:07:02]} f5 {[%emt 0:00:07] Black mates.} 31. exf5 {[%emt 0:00:10]} exf5 {[%emt 0:00:02]} 32. Kf3 {[%emt 0:02:50]} fxg4+ {[%emt 0:00:14]} 33. Kxg4 {[%emt 0:00:09]} Ke4 {[%emt 0:00:03]} 34. Kg5 {[%emt 0:00:30]} f5 {[%emt 0:00:12] Black took control after the opening.   Weighted Error Value: White=1.72/Black=0.19 (very precise) .  Mistake:       	White=3     	---        Inaccurate:     	White=1     	---        OK:         	White=2     	Black=5      Best:        	White=1     	Black=2      Brilliant:      	---       	Black=1} 0-1

[Event "Coimbra Queima Fitas Open 2024"]
[Site "Coimbra"]
[Date "2024.04.27"]
[Round "4.5"]
[White "Povshednyi, Ivan"]
[Black "Goncalves, Lucas Jordao"]
[Result "1/2-1/2"]
[ECO "D37"]
[WhiteElo "2249"]
[BlackElo "1983"]
[Annotator "NA RC"]
[PlyCount "84"]
[EventDate "2024.04.23"]
[EventType "swiss"]
[EventCountry "POR"]
[SourceTitle "playchess.com"]
[Source "ChessBase"]
[SourceQuality "1"]
[TimeControl "5400+30"]

{[%evp 8,58,23,-10,-22,15,18,9,4,-12,44,35,42,47,48,39,42,48,47,5,45,27,16,8,22,19,16,9,18,17,10,28,29,20,55,43,41,32767,32767,35,52,0,0,-8,0,0,0,-11,-5,0,-2,-5,0]} 1. d4 {[%emt 0:00:03]} d5 {[%emt 0:01:31]} 2. c4 {[%emt 0:00:14]} e6 {[%emt 0:00:42]} 3. Nf3 {[%emt 0:00:06]} Nf6 {[%emt 0:00:06]} 4. Nc3 {[%emt 0:00:24]} Be7 {[%emt 0:00:13]} 5. g3 {[%emt 0:00:07]} O-O {[%emt 0:00:51]} 6. Bg2 {[%emt 0:00:07]} c6 {[%emt 0:00:58]} 7. O-O {[%emt 0:00:19]} Nbd7 {[%emt 0:00:46]} 8. Nd2 {[%emt 0:01:01]} b6 {[%emt 0:03:31]} (8... b5 $1 $11) 9. e4 {[%emt 0:00:28]} dxe4 {[%emt 0:01:25]} 10. Ndxe4 {[%emt 0:00:07]} Bb7 {[%emt 0:03:11]} 11. Bf4 {[%emt 0:03:52] E07: Closed Catalan: Main Line (5 Nf3 0-0 6 0-0 Nbd7).} Nxe4 {[%emt 0:00:15]} 12. Nxe4 {[%emt 0:00:24]} Nf6 {[%emt 0:01:32]} 13. Nc3 {[%emt 0:00:11]} Bd6 {[%emt 0:02:06]} (13... Qd7 $11 {should be considered.}) 14. Qd2 {[%emt 0:14:55]} Qc7 {[%emt 0:05:13]} 15. Bg5 {[%emt 0:00:22]} Be7 {[%emt 0:05:37]} 16. Rad1 {[%emt 0:26:07]} Rad8 {[%emt 0:02:31]} 17. Qe2 {[%emt 0:08:51]} Rd7 {[%emt 0:15:32]} 18. Bf4 {[%emt 0:03:40]} Qc8 {[%emt 0:02:43]} 19. Rfe1 {[%emt 0:04:13]} Rfd8 {[%emt 0:00:55]} 20. Be5 {[%emt 0:01:36]} Qa8 {[%emt 0:05:18]} (20... Ba6 $11) 21. Bh3 {[%emt 0:01:28]} Ba6 {[%emt 0:03:47]} 22. b3 {[%emt 0:07:09]} Ne8 {[%emt 0:10:47]} 23. Qe3 {[%emt 0:07:26]} Bb7 {[%emt 0:01:40] [#]} 24. d5 {[%emt 0:06:19]} cxd5 {[%emt 0:06:55]} 25. cxd5 {[%emt 0:00:16]} Bc5 $1 {[%emt 0:00:27]} ({Of course not} 25... Bxd5 $6 26. Nxd5 Bc5 (26... Rxd5 $2 {perishes.} 27. Bg2 $18) 27. Qc3 $16) 26. Bd4 {[%emt 0:01:33]} Bxd4 {[%emt 0:00:46]} (26... Bxd5 $2 {is the wrong capture.} 27. Bxc5 bxc5 28. Nxd5 Rxd5 29. Bg2 $18) 27. Rxd4 {[%emt 0:00:13]} Nf6 {[%emt 0:00:46]} ({Not} 27... Bxd5 28. Nxd5 Rxd5 29. Bg2 $18) 28. dxe6 {[%emt 0:10:53]} Rxd4 {[%emt 0:02:23]} 29. e7 {[%emt 0:00:02]} Rd3 $11 {[%emt 0:02:38]} 30. exd8=Q+ {[%emt 0:00:04]} Qxd8 {[%emt 0:00:16]} 31. Qe7 {[%emt 0:01:14]} Qxe7 {[%emt 0:14:55]} 32. Rxe7 {[%emt 0:00:02]} Bf3 {[%emt 0:00:15]} 33. Rc7 {[%emt 0:01:35]} g5 {[%emt 0:02:19]} 34. Bg2 {[%emt 0:00:46]} g4 {[%emt 0:00:09]} 35. h3 {[%emt 0:00:37]} h5 {[%emt 0:00:04]} 36. Bxf3 {[%emt 0:00:10]} gxf3 {[%emt 0:00:05]} 37. Rc4 {[%emt 0:00:46]} Kg7 {[%emt 0:00:48]} 38. g4 {[%emt 0:00:40]} hxg4 {[%emt 0:02:17]} 39. hxg4 {[%emt 0:00:01]} Kg6 {[%emt 0:00:08]} 40. Kh2 {[%emt 0:00:58]} Kg5 {[%emt 0:01:11]} 41. Ne4+ {[%emt 0:00:25]} Nxe4 {[%emt 0:00:54]} 42. Rxe4 {[%emt 0:00:01]} Rd2 {[%emt 0:02:29]} 1/2-1/2

[Event "Coimbra Queima Fitas Open 2024"]
[Site "Coimbra"]
[Date "2024.04.27"]
[Round "4.6"]
[White "Almeida, Joao Pedro Dias"]
[Black "Ribeiro, Gustavo Martins Sant"]
[Result "1/2-1/2"]
[ECO "C78"]
[WhiteElo "2006"]
[BlackElo "2226"]
[Annotator "TA"]
[PlyCount "96"]
[EventDate "2024.04.23"]
[EventType "swiss"]
[EventCountry "POR"]
[SourceTitle "playchess.com"]
[Source "ChessBase"]
[SourceQuality "1"]
[TimeControl "5400+30"]

{[%evp 17,96,23,21,20,12,0,20,10,51,35,38,32,61,35,32,29,34,36,113,81,125,125,118,90,106,100,124,108,107,115,103,-35,-35,-28,-24,-18,0,-30,0,0,0,-62,0,0,0,0,0,0,0,0,0,0,46,0,0,0,0,0,0,0,0,-8,0,0,38,0,1,0,0,0,0,0,0,0,0,0,0,0,8,8,8]} 1. e4 {[%emt 0:00:15]} e5 {[%emt 0:00:17]} 2. Nf3 {[%emt 0:00:05]} Nc6 {[%emt 0:00:06]} 3. Bb5 {[%emt 0:00:03][%cal Bf1b5,Bb5a4,Ba4b3][%mdl 32]} a6 {[%emt 0:00:04]} 4. Ba4 {[%emt 0:00:04]} Nf6 {[%emt 0:00:04]} 5. O-O {[%emt 0:00:10]} b5 {[%emt 0:00:02]} 6. Bb3 {[%emt 0:00:03]} Bc5 {[%emt 0:00:05]} 7. a4 {[%emt 0:00:05]} Rb8 {[%emt 0:00:02]} 8. c3 {[%emt 0:00:12]} d6 {[%emt 0:00:12]} 9. d4 {[%emt 0:00:03]} Bb6 {[%emt 0:00:03]} 10. a5 {[%emt 0:00:03]} Ba7 {[%emt 0:00:03]} 11. h3 {[%emt 0:00:23]} Bb7 {[%emt 0:01:32]} 12. Re1 {[%emt 0:03:27]} h6 {[%emt 0:03:20]} 13. Be3 $1 {[%emt 0:01:01]} exd4 {[%emt 0:02:29]} 14. cxd4 {[%emt 0:00:28] [#] And now d5 would win.} Ne7 {[%emt 0:05:01]} 15. d5 {[%emt 0:03:33]} Bxe3 {[%emt 0:01:11]} 16. Rxe3 {[%emt 0:00:03]} O-O {[%emt 0:00:19]} 17. Nc3 {[%emt 0:02:22]} Ng6 {[%emt 0:01:38]} (17... c5 $14) 18. Nd4 {[%emt 0:03:51]} Nd7 {[%emt 0:02:40]} 19. Qd2 {[%emt 0:02:55] White is much more active.} Qg5 {[%emt 0:02:38]} 20. Rf1 {[%emt 0:01:55]} Nc5 {[%emt 0:18:45] [#]} 21. Bc2 $1 {[%emt 0:03:57]} Bc8 {[%emt 0:04:12]} 22. Qc1 {[%emt 0:01:27]} b4 {[%emt 0:17:14]} 23. Nce2 {[%emt 0:00:14] Black must now prevent f4.} Nf4 {[%emt 0:00:11][%csl Gf4][%cal Rg5g2]} 24. Rg3 {[%emt 0:06:19]} (24. Nxf4 $16 Qxf4 25. Qd2) 24... Nxe2+ $15 {[%emt 0:00:06]} 25. Nxe2 {[%emt 0:00:03]} Qxc1 {[%emt 0:00:06]} 26. Rxc1 {[%emt 0:00:51]} b3 {[%emt 0:01:56]} 27. Bd1 {[%emt 0:01:10]} Bd7 {[%emt 0:01:05]} 28. Nd4 {[%emt 0:00:34]} Rfe8 {[%emt 0:02:56]} ({Reject} 28... Nxe4 29. Re3 (29. Rxb3 Nc5 $11) 29... Nc5 30. Nxb3 $16) 29. Nxb3 {[%emt 0:00:57]} ({White should play} 29. Re3 $11) 29... Rxe4 {[%emt 0:00:28]} (29... Nxe4 $15 30. Re3 Nf6 31. Rxc7 Rxe3 32. fxe3 Ba4) 30. Nxc5 $11 {[%emt 0:00:49]} Re1+ {[%emt 0:00:05]} 31. Kh2 {[%emt 0:00:03]} dxc5 {[%emt 0:00:05]} 32. Rgc3 {[%emt 0:00:24]} Rxb2 {[%emt 0:05:40]} 33. Rxc5 {[%emt 0:00:17]} Rb5 {[%emt 0:00:15]} 34. Bf3 {[%emt 0:00:26]} Kf8 {[%emt 0:04:53]} (34... Rxa5 $1 $11 {should be considered.} 35. R1c3 Rxc5 36. Rxc5 Bb5) 35. Rxc7 {[%emt 0:01:17]} (35. R1c4 $14 {deserves consideration.} Rxc5 36. Rxc5) 35... Rxc1 {[%emt 0:00:09]} 36. Rxc1 $14 {[%emt 0:00:02][%mdl 4096] Endgame. KRB-KRB} Ke7 {[%emt 0:01:17]} 37. Ra1 {[%emt 0:01:37]} Rb2 {[%emt 0:00:04] Prevents Be2.} 38. Kg3 {[%emt 0:00:40]} Kd6 {[%emt 0:00:57]} 39. Ra3 {[%emt 0:00:42]} g5 {[%emt 0:00:16]} 40. Bd1 {[%emt 0:02:20]} Rb4 {[%emt 0:03:48][%cal Of7f5]} 41. Rb3 {[%emt 0:00:44]} Kc5 {[%emt 0:00:23] The position is equal.} 42. Rxb4 {[%emt 0:00:37]} Kxb4 $11 {[%emt 0:00:14] KB-KB} 43. f4 {[%emt 0:00:04]} Kxa5 {[%emt 0:00:19]} 44. fxg5 {[%emt 0:00:04]} hxg5 {[%emt 0:00:05]} 45. h4 {[%emt 0:00:03]} gxh4+ {[%emt 0:03:32]} 46. Kxh4 {[%emt 0:00:05]} f6 {[%emt 0:08:30]} 47. Kh5 {[%emt 0:00:10] Kg6 is the strong threat.} Bf5 {[%emt 0:03:58]} 48. g4 {[%emt 0:03:48]} Be4 {[%emt 0:03:58] Weighted Error Value: White=0.14 (very precise) /Black=0.14 (very precise) .  Mistake:       	White=3     	Black=3      Inaccurate:     	White=3     	Black=5      OK:         	White=15    	Black=17     Best:        	---       	Black=2      Strong:       	White=2     	---} 1/2-1/2